[Event "POL-chT DMP Ekstraliga 2019"]
[Site "Katowice"]
[Date "2019.09.02"]
[Round "6.27"]
[White "Olszewski, Michal"]
[Black "Druska, Juraj"]
[Result "1-0"]
[ECO "C11"]
[WhiteElo "2522"]
[BlackElo "2460"]
[Annotator "ChessBase"]
[PlyCount "123"]
[EventDate "2019.08.28"]
[EventType "team-tourn"]
[EventCountry "POL"]
[SourceTitle "playchess.com"]
[Source "ChessBase"]
[SourceQuality "1"]
[TimeControl "40/5400+30:1800+30"]

1. e4 {[%emt 0:00:00]} e6 {[%emt 0:00:00]} 2. d4 {[%emt 0:00:00]} d5 {[%emt 0:00:00]} 3. Nc3 {[%emt 0:00:00]} Nf6 {[%emt 0:00:15]} 4. e5 {[%emt 0:00:01]} Nfd7 {[%emt 0:00:06]} 5. Nce2 {[%emt 0:00:05]} c5 {[%emt 0:00:04]} 6. c3 {[%emt 0:00:04]} Nc6 {[%emt 0:00:09]} 7. Nf3 {[%emt 0:00:07]} Be7 {[%emt 0:02:18]} 8. Nf4 {[%emt 0:12:58]} Qa5 {[%emt 0:00:27]} 9. a3 {[%emt 0:02:41]} Nxd4 {[%emt 0:01:24]} 10. Nxd4 {[%emt 0:07:37]} cxd4 {[%emt 0:00:05]} 11. Qxd4 {[%emt 0:11:40]} Bc5 {[%emt 0:10:31]} 12. Qd2 {[%emt 0:05:58]} Qc7 {[%emt 0:01:18]} 13. Nd3 {[%emt 0:00:15]} Nxe5 {[%emt 0:01:15]} 14. Nxc5 {[%emt 0:00:09]} Qxc5 {[%emt 0:00:06]} 15. Qg5 {[%emt 0:01:50]} Ng6 {[%emt 0:00:11]} 16. Be3 {[%emt 0:05:54]} Qe7 {[%emt 0:02:43]} 17. Qg3 {[%emt 0:00:11]} O-O {[%emt 0:01:09]} 18. O-O-O {[%emt 0:02:58]} Qh4 {[%emt 0:34:05]} 19. Qxh4 {[%emt 0:01:50]} Nxh4 {[%emt 0:01:19]} 20. Bc5 {[%emt 0:00:05]} Bd7 {[%emt 0:01:43]} 21. Bxf8 {[%emt 0:00:30]} Kxf8 {[%emt 0:00:13]} 22. g3 {[%emt 0:17:15]} Nf5 {[%emt 0:00:49]} 23. Bd3 {[%emt 0:01:08]} Nd6 {[%emt 0:00:51]} 24. Rhe1 {[%emt 0:00:12]} h5 {[%emt 0:02:42]} 25. Bc2 {[%emt 0:01:29]} Rc8 {[%emt 0:02:07]} 26. Rd4 {[%emt 0:03:57]} a5 {[%emt 0:13:14]} 27. a4 {[%emt 0:01:59]} g6 {[%emt 0:01:04]} 28. Bd3 {[%emt 0:01:05]} Bc6 {[%emt 0:08:43]} 29. b3 {[%emt 0:03:00]} Ke7 {[%emt 0:01:54]} 30. Kb2 {[%emt 0:05:18]} Kf6 {[%emt 0:00:07]} 31. Rf4+ {[%emt 0:00:30]} Ke7 {[%emt 0:00:24]} 32. c4 {[%emt 0:02:26]} dxc4 {[%emt 0:11:52]} 33. Bxc4 {[%emt 0:00:08]} g5 {[%emt 0:00:48]} 34. Rd4 {[%emt 0:00:10]} Nf5 {[%emt 0:01:20]} 35. Rd2 {[%emt 0:00:44]} h4 {[%emt 0:01:33]} 36. g4 {[%emt 0:04:18]} Nh6 {[%emt 0:00:11]} 37. h3 {[%emt 0:00:38]} Kf6 {[%emt 0:00:25]} 38. Rd4 {[%emt 0:02:00]} Ng8 {[%emt 0:00:48]} 39. f4 {[%emt 0:00:37]} Ne7 {[%emt 0:00:28]} 40. fxg5+ {[%emt 0:00:00]} Kxg5 {[%emt 0:00:00]} 41. Re5+ {[%emt 0:05:26]} Kf6 {[%emt 0:03:03]} 42. Rxa5 {[%emt 0:00:07]} Ng6 {[%emt 0:01:57]} 43. Rd2 {[%emt 0:22:07]} Kg7 {[%emt 0:11:41]} 44. Rf2 {[%emt 0:03:09]} Rd8 {[%emt 0:00:20]} 45. Rc5 {[%emt 0:00:14]} Rd4 {[%emt 0:02:14]} 46. a5 {[%emt 0:00:41]} Be4 {[%emt 0:01:57]} 47. Rc7 {[%emt 0:01:46]} Ne5 {[%emt 0:00:06]} 48. Bxe6 {[%emt 0:01:10]} Rd1 {[%emt 0:01:09]} 49. Bc4 {[%emt 0:00:42]} Bg6 {[%emt 0:04:56]} 50. Ka3 {[%emt 0:04:40]} Ra1+ {[%emt 0:03:00]} 51. Kb4 {[%emt 0:00:43]} Be4 {[%emt 0:01:21]} 52. Kb5 {[%emt 0:01:43]} Rb1 {[%emt 0:04:05]} 53. Bxf7 {[%emt 0:01:08]} Kh6 {[%emt 0:00:21]} 54. g5+ {[%emt 0:00:55]} Kxg5 {[%emt 0:00:53]} 55. Rc5 {[%emt 0:00:06]} Bd3+ {[%emt 0:01:00]} 56. Kb6 {[%emt 0:00:22]} Re1 {[%emt 0:00:01]} 57. Kxb7 {[%emt 0:00:33]} Kh6 {[%emt 0:00:01]} 58. Bd5 {[%emt 0:00:40]} Bg6 {[%emt 0:01:12]} 59. Rf6 {[%emt 0:00:42]} Nd7 {[%emt 0:00:03]} 60. Rxg6+ {[%emt 0:00:10]} Kxg6 {[%emt 0:00:03]} 61. Rc6+ {[%emt 0:00:19]} Kf5 {[%emt 0:00:46]} 62. a6 {[%emt 0:00:51]} 1-0

[Event "POL-chT DMP Ekstraliga 2019"]
[Site "Katowice"]
[Date "2019.09.02"]
[Round "6.28"]
[White "Kaczmarek, Aleksander"]
[Black "Warakomski, Tomasz"]
[Result "0-1"]
[ECO "B56"]
[WhiteElo "2389"]
[BlackElo "2497"]
[Annotator "ChessBase"]
[PlyCount "119"]
[EventDate "2019.08.28"]
[EventType "team-tourn"]
[EventCountry "POL"]
[SourceTitle "playchess.com"]
[Source "ChessBase"]
[SourceQuality "1"]
[TimeControl "40/5400+30:1800+30"]

1. e4 {[%emt 0:00:00]} c5 {[%emt 0:00:00]} 2. Nf3 {[%emt 0:00:00]} Nc6 {[%emt 0:00:00]} 3. d4 {[%emt 0:00:00]} cxd4 {[%emt 0:00:00]} 4. Nxd4 {[%emt 0:00:00]} Nf6 {[%emt 0:00:00]} 5. Nc3 {[%emt 0:00:00]} d6 {[%emt 0:00:05]} 6. Nb3 {[%emt 0:00:00]} g6 {[%emt 0:13:45]} 7. Bd3 {[%emt 0:00:28]} Bg7 {[%emt 0:00:05]} 8. O-O {[%emt 0:00:06]} O-O {[%emt 0:09:15]} 9. f4 {[%emt 0:03:20]} b5 {[%emt 0:00:35]} 10. Nxb5 {[%emt 0:15:50]} Qb6+ {[%emt 0:02:26]} 11. Kh1 {[%emt 0:00:38]} Nxe4 {[%emt 0:01:00]} 12. Bxe4 {[%emt 0:01:08]} Qxb5 {[%emt 0:00:21]} 13. a4 {[%emt 0:03:08]} Qa6 {[%emt 0:01:58]} 14. Be3 {[%emt 0:03:59]} Bxb2 {[%emt 0:14:27]} 15. Rb1 {[%emt 0:03:40]} Bg7 {[%emt 0:00:23]} 16. Qd5 {[%emt 0:08:55]} Bb7 {[%emt 0:01:58]} 17. Nd2 {[%emt 0:04:02]} e6 {[%emt 0:18:13]} 18. Qxd6 {[%emt 0:10:46]} Rad8 {[%emt 0:01:35]} 19. Qc5 {[%emt 0:07:42]} Ba8 {[%emt 0:01:54]} 20. Bd3 {[%emt 0:08:18]} Qxa4 {[%emt 0:04:29]} 21. Bb5 {[%emt 0:03:42]} Qa5 {[%emt 0:00:05]} 22. Bxc6 {[%emt 0:12:06]} Qxc5 {[%emt 0:00:05]} 23. Bxc5 {[%emt 0:00:04]} Bxc6 {[%emt 0:00:04]} 24. Bxf8 {[%emt 0:00:13]} Kxf8 {[%emt 0:00:42]} 25. Nf3 {[%emt 0:01:26]} a5 {[%emt 0:03:39]} 26. Rb6 {[%emt 0:04:57]} Bxf3 {[%emt 0:13:10]} 27. gxf3 {[%emt 0:00:05]} Bh6 {[%emt 0:00:02]} 28. c4 {[%emt 0:03:00]} Bxf4 {[%emt 0:02:21]} 29. Rb2 {[%emt 0:00:14]} Ke7 {[%emt 0:02:09]} 30. Rc2 {[%emt 0:00:23]} Rd3 {[%emt 0:01:46]} 31. Ra1 {[%emt 0:01:42]} Bc7 {[%emt 0:00:05]} 32. Kg2 {[%emt 0:00:09]} Kd7 {[%emt 0:00:18]} 33. Kf2 {[%emt 0:03:20]} Kc6 {[%emt 0:00:05]} 34. Ke2 {[%emt 0:00:12]} Rd4 {[%emt 0:00:03]} 35. Rb1 {[%emt 0:02:06]} Rh4 {[%emt 0:00:47]} 36. Kd3 {[%emt 0:00:24]} h5 {[%emt 0:00:16]} 37. Rb5 {[%emt 0:01:03]} Rh3 {[%emt 0:01:31]} 38. Ke3 {[%emt 0:00:24]} Bb6+ {[%emt 0:01:02]} 39. Kf4 {[%emt 0:00:44]} f6 {[%emt 0:00:28]} 40. Ke4 {[%emt 0:00:00]} g5 {[%emt 0:00:00]} 41. Re2 {[%emt 0:12:21]} Bc7 {[%emt 0:03:17]} 42. Kd4 {[%emt 0:01:39]} Rh4+ {[%emt 0:01:05]} 43. Kd3 {[%emt 0:02:42]} e5 {[%emt 0:00:12]} 44. Rbb2 {[%emt 0:01:12]} Rd4+ {[%emt 0:00:38]} 45. Ke3 {[%emt 0:02:09]} Bb6 {[%emt 0:00:32]} 46. Rec2 {[%emt 0:00:11]} a4 {[%emt 0:05:38]} 47. Ra2 {[%emt 0:01:44]} Bc5 {[%emt 0:00:10]} 48. Ke2 {[%emt 0:03:41]} a3 {[%emt 0:00:05]} 49. Ra1 {[%emt 0:00:06]} Rh4 {[%emt 0:00:15]} 50. Kd3 {[%emt 0:00:54]} e4+ {[%emt 0:00:33]} 51. fxe4 {[%emt 0:01:32]} Rh3+ {[%emt 0:00:06]} 52. Kd2 {[%emt 0:00:13]} Rxh2+ {[%emt 0:00:04]} 53. Kd3 {[%emt 0:00:02]} Rh3+ {[%emt 0:00:05]} 54. Kd2 {[%emt 0:00:04]} Bd4 {[%emt 0:00:16]} 55. Raa2 {[%emt 0:02:59]} Kc5 {[%emt 0:00:34]} 56. Kd1 {[%emt 0:00:53]} Rh1+ {[%emt 0:00:10]} 57. Ke2 {[%emt 0:00:10]} Rh2+ {[%emt 0:00:18]} 58. Kd1 {[%emt 0:00:36]} Rxc2 {[%emt 0:00:17]} 59. Kxc2 {[%emt 0:00:15]} Bb2 {[%emt 0:00:05]} 60. Kd3 {[%emt 0:00:11]} 0-1

[Event "POL-chT DMP Ekstraliga 2019"]
[Site "Katowice"]
[Date "2019.09.02"]
[Round "6.29"]
[White "Kantans, Toms"]
[Black "Mikrut, Dariusz"]
[Result "1-0"]
[ECO "C86"]
[WhiteElo "2490"]
[BlackElo "2375"]
[Annotator "ChessBase"]
[PlyCount "99"]
[EventDate "2019.08.28"]
[EventType "team-tourn"]
[EventCountry "POL"]
[SourceTitle "playchess.com"]
[Source "ChessBase"]
[SourceQuality "1"]
[TimeControl "40/5400+30:1800+30"]

1. e4 {[%emt 0:00:00]} e5 {[%emt 0:00:00]} 2. Nf3 {[%emt 0:00:00]} Nc6 {[%emt 0:00:00]} 3. Bb5 {[%emt 0:00:16]} a6 {[%emt 0:00:00]} 4. Ba4 {[%emt 0:00:04]} Nf6 {[%emt 0:00:00]} 5. O-O {[%emt 0:00:06]} Be7 {[%emt 0:00:01]} 6. Qe2 {[%emt 0:00:36]} b5 {[%emt 0:00:37]} 7. Bb3 {[%emt 0:00:05]} d6 {[%emt 0:00:08]} 8. c3 {[%emt 0:00:09]} O-O {[%emt 0:01:29]} 9. Rd1 {[%emt 0:00:05]} Na5 {[%emt 0:02:19]} 10. Bc2 {[%emt 0:00:05]} c5 {[%emt 0:00:09]} 11. d4 {[%emt 0:00:05]} Qc7 {[%emt 0:00:39]} 12. d5 {[%emt 0:00:06]} Bd7 {[%emt 0:02:30]} 13. h3 {[%emt 0:08:52]} c4 {[%emt 0:01:54]} 14. b4 {[%emt 0:02:01]} cxb3 {[%emt 0:00:46]} 15. axb3 {[%emt 0:00:03]} Nb7 {[%emt 0:03:59]} 16. b4 {[%emt 0:04:14]} h6 {[%emt 0:11:45]} 17. Be3 {[%emt 0:06:39]} Nh7 {[%emt 0:00:47]} 18. Ra3 {[%emt 0:02:13]} Ng5 {[%emt 0:03:20]} 19. Nxg5 {[%emt 0:02:02]} Bxg5 {[%emt 0:00:13]} 20. Bxg5 {[%emt 0:03:34]} hxg5 {[%emt 0:00:09]} 21. Nd2 {[%emt 0:00:19]} Qb6 {[%emt 0:07:51]} 22. Rda1 {[%emt 0:00:54]} a5 {[%emt 0:00:51]} 23. Bd3 {[%emt 0:04:42]} a4 {[%emt 0:03:37]} 24. c4 {[%emt 0:08:14]} bxc4 {[%emt 0:05:20]} 25. Nxc4 {[%emt 0:00:07]} Qd8 {[%emt 0:07:31]} 26. Qe3 {[%emt 0:06:48]} f5 {[%emt 0:00:51]} 27. exf5 {[%emt 0:01:30]} Bxf5 {[%emt 0:00:05]} 28. Bxf5 {[%emt 0:01:30]} Rxf5 {[%emt 0:00:07]} 29. Nb6 {[%emt 0:01:36]} Rb8 {[%emt 0:04:36]} 30. Rxa4 {[%emt 0:00:08]} Rf8 {[%emt 0:01:05]} 31. Ra7 {[%emt 0:06:35]} Qc7 {[%emt 0:01:49]} 32. Rc1 {[%emt 0:00:25]} Qf7 {[%emt 0:00:07]} 33. Rc4 {[%emt 0:03:31]} Qf5 {[%emt 0:02:05]} 34. Rc7 {[%emt 0:01:09]} Rf7 {[%emt 0:00:08]} 35. Rxf7 {[%emt 0:00:13]} Kxf7 {[%emt 0:00:06]} 36. Qc1 {[%emt 0:06:23]} Kg6 {[%emt 0:02:38]} 37. Nc4 {[%emt 0:08:37]} Qd3 {[%emt 0:10:13]} 38. Ne3 {[%emt 0:01:31]} Nc5 {[%emt 0:00:34]} 39. Qb2 {[%emt 0:16:57]} Qe4 {[%emt 0:07:28]} 40. b5 {[%emt 0:00:00]} Qd4 {[%emt 0:00:00]} 41. Rxg7+ {[%emt 0:05:23]} Kf6 {[%emt 0:11:09]} 42. Qb1 {[%emt 0:00:59]} Qe4 {[%emt 0:00:11]} 43. Qxe4 {[%emt 0:00:09]} Nxe4 {[%emt 0:00:05]} 44. Rd7 {[%emt 0:00:11]} Rxb5 {[%emt 0:03:58]} 45. f3 {[%emt 0:00:44]} Rb1+ {[%emt 0:00:56]} 46. Kh2 {[%emt 0:00:06]} Nf2 {[%emt 0:00:03]} 47. Rxd6+ {[%emt 0:00:28]} Kf7 {[%emt 0:00:05]} 48. Re6 {[%emt 0:03:20]} e4 {[%emt 0:00:07]} 49. fxe4 {[%emt 0:00:47]} Re1 {[%emt 0:00:06]} 50. Nf5 {[%emt 0:00:43]} 1-0

[Event "POL-chT DMP Ekstraliga 2019"]
[Site "Katowice"]
[Date "2019.09.02"]
[Round "6.30"]
[White "Osmak, Iulija"]
[Black "Warakomska, Anna"]
[Result "0-1"]
[ECO "B10"]
[WhiteElo "2414"]
[BlackElo "2241"]
[Annotator "NA"]
[PlyCount "68"]
[EventDate "2019.08.28"]
[EventType "team-tourn"]
[EventCountry "POL"]
[SourceTitle "playchess.com"]
[Source "ChessBase"]
[SourceQuality "1"]
[TimeControl "40/5400+30:1800+30"]

1. e4 {[%emt 0:00:00]} c6 {[%emt 0:00:05]} 2. e5 {[%emt 0:00:00]} d5 {[%emt 0:03:03]} 3. d4 {[%emt 0:00:00]} Bf5 {[%emt 0:00:27]} 4. Nf3 {[%emt 0:00:03]} e6 {[%emt 0:00:28]} 5. Be2 {[%emt 0:00:04]} Ne7 {[%emt 0:00:30]} 6. c3 {[%emt 0:00:11]} Ng6 {[%emt 0:11:05]} 7. O-O {[%emt 0:04:05]} c5 {[%emt 0:02:47]} 8. Be3 {[%emt 0:03:07]} Qb6 {[%emt 0:05:04]} 9. Na3 {[%emt 0:14:00]} Nc6 {[%emt 0:08:14]} 10. c4 {[%emt 0:07:59]} Qxb2 {[%emt 0:10:42]} 11. Nb5 {[%emt 0:03:58]} O-O-O {[%emt 0:02:37]} 12. cxd5 {[%emt 0:06:52]} Rxd5 {[%emt 0:06:14]} 13. Rc1 {[%emt 0:12:34]} Kb8 {[%emt 0:04:18]} 14. g4 {[%emt 0:05:31]} Bxg4 {[%emt 0:21:05]} 15. Rb1 {[%emt 0:10:49]} Qxe2 {[%emt 0:08:58]} 16. Qxe2 {[%emt 0:00:09]} Nh4 {[%emt 0:00:01]} 17. Qb2 {[%emt 0:04:02]} Nxf3+ {[%emt 0:01:56]} 18. Kh1 {[%emt 0:02:00]} Rd7 {[%emt 0:01:21]} 19. dxc5 {[%emt 0:00:24]} Nfxe5 {[%emt 0:04:36]} 20. Bf4 {[%emt 0:09:53]} Bf3+ {[%emt 0:00:06]} 21. Kg1 {[%emt 0:00:04]} f6 {[%emt 0:00:13]} 22. Qa3 {[%emt 0:02:19]} Bd5 {[%emt 0:02:40]} 23. Rfe1 {[%emt 0:01:37]} b6 {[%emt 0:03:33]} 24. Nc3 {[%emt 0:01:33]} Nd4 {[%emt 0:00:23]} 25. Qa4 {[%emt 0:04:29]} Bc6 {[%emt 0:00:43]} 26. Qc4 {[%emt 0:01:40]} Ndf3+ {[%emt 0:00:13]} 27. Kf1 {[%emt 0:00:38]} Nd2+ {[%emt 0:00:06]} 28. Bxd2 {[%emt 0:00:13]} Nxc4 {[%emt 0:00:03]} 29. Bf4+ {[%emt 0:00:31]} e5 {[%emt 0:00:10]} 30. cxb6 {[%emt 0:00:09]} axb6 {[%emt 0:00:34]} 31. Bc1 {[%emt 0:00:30]} Bc5 {[%emt 0:00:23]} 32. Ne4 {[%emt 0:00:14]} Bxe4 {[%emt 0:00:21]} 33. Rxe4 {[%emt 0:00:02]} Nd2+ {[%emt 0:00:24]} 34. Bxd2 {[%emt 0:00:03]} Rxd2 {[%emt 0:00:07]} 0-1

[Event "POL-chT DMP Ekstraliga 2019"]
[Site "Katowice"]
[Date "2019.09.03"]
[Round "7.12"]
[White "Warakomska, Anna"]
[Black "Bartel, Marta"]
[Result "1/2-1/2"]
[ECO "B06"]
[WhiteElo "2241"]
[BlackElo "2206"]
[Annotator "NA"]
[PlyCount "40"]
[EventDate "2019.08.28"]
[EventType "team-tourn"]
[EventCountry "POL"]
[SourceTitle "playchess.com"]
[Source "ChessBase"]
[SourceQuality "1"]
[TimeControl "40/5400+30:1800+30"]

1. e4 {[%emt 0:00:00]} g6 {[%emt 0:00:00]} 2. d4 {[%emt 0:00:00]} Bg7 {[%emt 0:00:00]} 3. Nf3 {[%emt 0:00:30]} d6 {[%emt 0:00:16]} 4. Be3 {[%emt 0:01:29]} c6 {[%emt 0:01:16]} 5. Nc3 {[%emt 0:01:36]} b5 {[%emt 0:01:00]} 6. Bd3 {[%emt 0:03:18]} Nd7 {[%emt 0:00:54]} 7. O-O {[%emt 0:02:06]} Qc7 {[%emt 0:00:29]} 8. Ne2 {[%emt 0:04:32]} Bb7 {[%emt 0:07:16]} 9. a4 {[%emt 0:09:08]} b4 {[%emt 0:04:32]} 10. c3 {[%emt 0:02:03]} a5 {[%emt 0:10:04]} 11. Qb3 {[%emt 0:06:51]} bxc3 {[%emt 0:06:28]} 12. bxc3 {[%emt 0:01:01]} Ngf6 {[%emt 0:02:01]} 13. e5 {[%emt 0:06:57]} Nd5 {[%emt 0:07:02]} 14. e6 {[%emt 0:08:16]} fxe6 {[%emt 0:00:21]} 15. Ng5 {[%emt 0:00:13]} Nf8 {[%emt 0:11:41]} 16. Nf4 {[%emt 0:02:36]} Bc8 {[%emt 0:06:52]} 17. Qc2 {[%emt 0:14:34]} Bf6 {[%emt 0:04:11]} 18. Nxh7 {[%emt 0:20:29]} Rxh7 {[%emt 0:16:15]} 19. Bxg6+ {[%emt 0:00:05]} Rf7 {[%emt 0:06:08]} 20. Bh5 {[%emt 0:07:56]} Nxf4 {[%emt 0:04:40]} 1/2-1/2

[Event "POL-chT DMP Ekstraliga 2019"]
[Site "Katowice"]
[Date "2019.09.03"]
[Round "7.18"]
[White "Socko, Monika"]
[Black "Zawadzka, Jolanta"]
[Result "1-0"]
[ECO "A13"]
[WhiteElo "2423"]
[BlackElo "2403"]
[Annotator "NA"]
[PlyCount "75"]
[EventDate "2019.08.28"]
[EventType "team-tourn"]
[EventCountry "POL"]
[SourceTitle "playchess.com"]
[Source "ChessBase"]
[SourceQuality "1"]
[TimeControl "40/5400+30:1800+30"]

1. c4 {[%emt 0:00:00]} e6 {[%emt 0:00:00]} 2. Nf3 {[%emt 0:00:00]} d5 {[%emt 0:00:00]} 3. g3 {[%emt 0:00:04]} Nf6 {[%emt 0:00:30]} 4. Bg2 {[%emt 0:00:05]} Be7 {[%emt 0:00:25]} 5. d4 {[%emt 0:00:20]} O-O {[%emt 0:00:15]} 6. O-O {[%emt 0:00:09]} c6 {[%emt 0:00:05]} 7. Nc3 {[%emt 0:00:29]} b6 {[%emt 0:00:55]} 8. Ne5 {[%emt 0:00:18]} Bb7 {[%emt 0:04:01]} 9. e4 {[%emt 0:01:14]} dxe4 {[%emt 0:27:11]} 10. Nxe4 {[%emt 0:03:30]} Nfd7 {[%emt 0:00:17]} 11. Be3 {[%emt 0:17:58]} f5 {[%emt 0:05:25]} 12. Nc3 {[%emt 0:01:56]} Nxe5 {[%emt 0:01:50]} 13. dxe5 {[%emt 0:00:03]} Qc8 {[%emt 0:07:24]} 14. c5 {[%emt 0:11:58]} Nd7 {[%emt 0:08:19]} 15. cxb6 {[%emt 0:05:03]} Nxe5 {[%emt 0:07:19]} 16. bxa7 {[%emt 0:03:55]} c5 {[%emt 0:01:00]} 17. Bxb7 {[%emt 0:10:04]} Qxb7 {[%emt 0:00:05]} 18. Qb3 {[%emt 0:01:47]} Qc6 {[%emt 0:00:42]} 19. Qb5 {[%emt 0:07:08]} Rxa7 {[%emt 0:01:11]} 20. Qxc6 {[%emt 0:05:23]} Nxc6 {[%emt 0:00:02]} 21. Nb5 {[%emt 0:00:11]} Rb7 {[%emt 0:03:05]} 22. a4 {[%emt 0:01:48]} Na5 {[%emt 0:02:58]} 23. Rac1 {[%emt 0:01:26]} Ra8 {[%emt 0:04:03]} 24. Rfd1 {[%emt 0:03:07]} Bf6 {[%emt 0:06:09]} 25. Rxc5 {[%emt 0:01:48]} Bxb2 {[%emt 0:04:47]} 26. Nc7 {[%emt 0:01:27]} Rc8 {[%emt 0:00:44]} 27. Nxe6 {[%emt 0:00:57]} Rxc5 {[%emt 0:00:28]} 28. Nxc5 {[%emt 0:00:30]} Re7 {[%emt 0:03:45]} 29. Rd8+ {[%emt 0:01:26]} Kf7 {[%emt 0:00:06]} 30. Rd5 {[%emt 0:00:07]} Nc4 {[%emt 0:01:44]} 31. Rxf5+ {[%emt 0:03:17]} Kg6 {[%emt 0:00:09]} 32. Rg5+ {[%emt 0:01:07]} Kf6 {[%emt 0:00:10]} 33. Bf4 {[%emt 0:01:35]} Ra7 {[%emt 0:06:01]} 34. Rd5 {[%emt 0:04:25]} Ba3 {[%emt 0:00:21]} 35. Rd4 {[%emt 0:02:03]} Nb2 {[%emt 0:01:26]} 36. Ne4+ {[%emt 0:00:05]} Kf5 {[%emt 0:00:55]} 37. Nc3 {[%emt 0:01:50]} h6 {[%emt 0:02:42]} 38. Nb5 {[%emt 0:00:47]} 1-0

[Event "POL-chT DMP Ekstraliga 2019"]
[Site "Katowice"]
[Date "2019.09.03"]
[Round "7.21"]
[White "Janik, Igor"]
[Black "Markowski, Tomasz"]
[Result "1-0"]
[ECO "B40"]
[WhiteElo "2470"]
[BlackElo "2554"]
[Annotator "RC"]
[PlyCount "87"]
[EventDate "2019.08.28"]
[EventType "team-tourn"]
[EventCountry "POL"]
[SourceTitle "playchess.com"]
[Source "ChessBase"]
[SourceQuality "1"]
[TimeControl "40/5400+30:1800+30"]

1. e4 {[%emt 0:00:00]} c5 {[%emt 0:00:00]} 2. Nf3 {[%emt 0:00:00]} e6 {[%emt 0:00:00]} 3. g3 {[%emt 0:00:04]} b6 {[%emt 0:01:06]} 4. Bg2 {[%emt 0:00:10]} Bb7 {[%emt 0:00:05]} 5. d3 {[%emt 0:00:28]} d6 {[%emt 0:00:14]} 6. O-O {[%emt 0:00:20]} Nd7 {[%emt 0:00:02]} 7. b3 {[%emt 0:02:29]} Ngf6 {[%emt 0:00:32]} 8. Bb2 {[%emt 0:00:11]} Be7 {[%emt 0:00:29]} 9. Nbd2 {[%emt 0:00:48]} O-O {[%emt 0:00:18]} 10. Qe2 {[%emt 0:00:50]} Qc7 {[%emt 0:09:47]} 11. h4 {[%emt 0:04:04]} d5 {[%emt 0:08:48]} 12. e5 {[%emt 0:00:49]} Ne8 {[%emt 0:01:31]} 13. h5 {[%emt 0:04:43]} Qd8 {[%emt 0:06:22]} 14. h6 {[%emt 0:04:04]} g6 {[%emt 0:00:08]} 15. Nh2 {[%emt 0:00:16]} Nc7 {[%emt 0:00:39]} 16. Ng4 {[%emt 0:04:40]} b5 {[%emt 0:00:27]} 17. c4 {[%emt 0:08:11]} a5 {[%emt 0:01:21]} 18. d4 {[%emt 0:12:38]} bxc4 {[%emt 0:04:01]} 19. bxc4 {[%emt 0:01:18]} Ba6 {[%emt 0:03:31]} 20. dxc5 {[%emt 0:08:03]} Bxc5 {[%emt 0:00:55]} 21. Rfc1 {[%emt 0:01:46]} Rb8 {[%emt 0:01:56]} 22. Bc3 {[%emt 0:01:09]} dxc4 {[%emt 0:06:07]} 23. Ne4 {[%emt 0:02:19]} Nd5 {[%emt 0:01:35]} 24. Nxc5 {[%emt 0:03:36]} Nxc3 {[%emt 0:01:05]} 25. Rxc3 {[%emt 0:02:43]} Nxc5 {[%emt 0:00:23]} 26. Qe3 {[%emt 0:02:05]} Qe7 {[%emt 0:02:11]} 27. Bf1 {[%emt 0:01:03]} Rfc8 {[%emt 0:04:51]} 28. Rac1 {[%emt 0:01:10]} Na4 {[%emt 0:00:52]} 29. R3c2 {[%emt 0:01:53]} Nb6 {[%emt 0:05:01]} 30. Qd2 {[%emt 0:02:57]} Rc5 {[%emt 0:05:45]} 31. Rb1 {[%emt 0:10:06]} Kh8 {[%emt 0:05:39]} 32. Qf4 {[%emt 0:01:36]} Rb7 {[%emt 0:06:05]} 33. Rcb2 {[%emt 0:02:45]} Nd5 {[%emt 0:01:49]} 34. Rxb7 {[%emt 0:01:07]} Bxb7 {[%emt 0:00:01]} 35. Qd4 {[%emt 0:00:13]} Rc8 {[%emt 0:03:56]} 36. Bxc4 {[%emt 0:01:21]} Ba8 {[%emt 0:01:36]} 37. Bxd5 {[%emt 0:01:33]} Bxd5 {[%emt 0:00:08]} 38. Qf4 {[%emt 0:02:13]} g5 {[%emt 0:06:06]} 39. Qd2 {[%emt 0:00:41]} Be4 {[%emt 0:03:01]} 40. Rc1 {[%emt 0:00:00]} Rxc1+ {[%emt 0:00:00]} 41. Qxc1 {[%emt 0:02:58]} Qb7 {[%emt 0:05:38]} 42. a3 {[%emt 0:04:29]} Bh1 {[%emt 0:11:36]} 43. f3 {[%emt 0:02:10]} Bxf3 {[%emt 0:00:22]} 44. Qxg5 {[%emt 0:00:08]} 1-0

[Event "POL-chT DMP Ekstraliga 2019"]
[Site "Katowice"]
[Date "2019.09.03"]
[Round "7.30"]
[White "Kiolbasa, Oliwia"]
[Black "Antolak, Julia"]
[Result "1/2-1/2"]
[ECO "C60"]
[WhiteElo "2246"]
[BlackElo "2257"]
[Annotator "ChessBase"]
[PlyCount "52"]
[EventDate "2019.08.28"]
[EventType "team-tourn"]
[EventCountry "POL"]
[SourceTitle "playchess.com"]
[Source "ChessBase"]
[SourceQuality "1"]
[TimeControl "40/5400+30:1800+30"]

1. e4 {[%emt 0:00:00]} e5 {[%emt 0:00:00]} 2. Nf3 {[%emt 0:00:00]} Nc6 {[%emt 0:00:00]} 3. Bb5 {[%emt 0:02:07]} g6 {[%emt 0:00:26]} 4. d4 {[%emt 0:10:42]} exd4 {[%emt 0:02:55]} 5. Bg5 {[%emt 0:04:13]} Be7 {[%emt 0:00:41]} 6. Bxe7 {[%emt 0:00:21]} Qxe7 {[%emt 0:00:30]} 7. Bxc6 {[%emt 0:09:21]} dxc6 {[%emt 0:00:40]} 8. Qxd4 {[%emt 0:00:14]} Nf6 {[%emt 0:00:25]} 9. Nc3 {[%emt 0:00:28]} Bg4 {[%emt 0:03:22]} 10. Nd2 {[%emt 0:06:41]} c5 {[%emt 0:08:02]} 11. Qe3 {[%emt 0:02:24]} O-O-O {[%emt 0:04:39]} 12. h3 {[%emt 0:05:27]} Bd7 {[%emt 0:02:01]} 13. O-O-O {[%emt 0:00:16]} Bc6 {[%emt 0:00:59]} 14. f3 {[%emt 0:03:08]} Nd5 {[%emt 0:16:44]} 15. Nxd5 {[%emt 0:00:54]} Rxd5 {[%emt 0:00:27]} 16. Nc4 {[%emt 0:08:13]} Rxd1+ {[%emt 0:00:29]} 17. Rxd1 {[%emt 0:00:03]} Re8 {[%emt 0:03:19]} 18. Qf4 {[%emt 0:01:58]} Qe6 {[%emt 0:04:54]} 19. b3 {[%emt 0:02:57]} f6 {[%emt 0:01:57]} 20. Kb2 {[%emt 0:01:23]} b6 {[%emt 0:03:03]} 21. Nxb6+ cxb6 22. Rd6 {[%emt 0:03:25]} Qe5+ {[%emt 0:03:15]} 23. Qxe5 {[%emt 0:00:10]} fxe5 {[%emt 0:00:06]} 24. Rxc6+ {[%emt 0:00:07]} Kd7 {[%emt 0:00:04]} 25. Rf6 {[%emt 0:00:11]} Ke7 {[%emt 0:00:04]} 26. Rc6 {[%emt 0:00:09]} Kd7 {[%emt 0:00:04]} 1/2-1/2